fUSD/lending_fUSD_20260418
["ID","MTS","AMOUNT","RATE_DAILY","PERIOD"]
[420674782,1776456044738,-500.0,0.00033602,60]
[420674783,1776456044798,-442.3513881,0.00033602,60]
[420674784,1776456044855,-150.1931697,0.00033602,60]
[420674785,1776456044910,-500.0,0.00033602,60]
[420674786,1776456044972,-800.0,0.00033602,60]
[420674787,1776456045032,-776.8533224,0.00033602,60]
[420674788,1776456045096,-500.0,0.00033602,60]
[420674789,1776456045151,-800.0,0.00033602,60]
[420674790,1776456045209,-500.0,0.00033602,60]
[420674791,1776456045272,-800.0,0.00033602,60]
[420674792,1776456045333,-500.0,0.00033602,60]
[420674793,1776456045388,-800.0,0.00033602,60]
[420674794,1776456045444,-500.0,0.00033602,60]
[420674795,1776456045501,-800.0,0.00033602,60]
[420674796,1776456045557,-500.0,0.00033602,60]
[420674797,1776456045614,-1472.2494382,0.00033602,60]
[420674798,1776456045671,-992.2696271,0.00033602,60]
[420674799,1776456045738,-500.0,0.00033602,60]
[420674800,1776456047385,-500.0,0.00033602,60]
[420674801,1776456047513,-560.9424973,0.00033602,60]
[420674802,1776456047581,-1000.0,0.00033602,60]
[420674803,1776456047633,-1000.0,0.00033602,60]
[420674804,1776456047683,-1000.0,0.00033602,60]
[420674805,1776456047733,-1000.0,0.00033602,60]
[420674806,1776456047783,-1000.0,0.00033602,60]
[420674807,1776456047832,-1000.0,0.00033602,60]
[420674808,1776456047880,-1000.0,0.00033602,60]
[420674809,1776456047930,-1000.0,0.00033602,60]
[420674810,1776456047979,-1000.0,0.00033602,60]
[420674811,1776456048029,-1000.0,0.00033602,60]
[420674812,1776456048078,-1000.0,0.00033602,60]
[420674813,1776456048127,-1000.0,0.00033602,60]
[420674814,1776456048178,-1000.0,0.00033602,60]
[420674815,1776456048226,-1000.0,0.00033602,60]
[420674816,1776456048277,-1000.0,0.00033602,60]
[420674817,1776456048327,-1000.0,0.00033602,60]
[420674818,1776456048377,-1000.0,0.00033602,60]
[420674819,1776456048429,-1000.0,0.00033602,60]
[420674820,1776456048480,-1000.0,0.00033602,60]
[420674821,1776456048533,-1000.0,0.00033602,60]
[420674822,1776456048585,-1000.0,0.00033602,60]
[420674823,1776456048639,-1000.0,0.00033602,60]
[420674824,1776456048691,-1000.0,0.00033602,60]
[420674825,1776456048743,-1000.0,0.00033602,60]
[420674826,1776456048795,-1000.0,0.00033602,60]
[420674827,1776456048845,-1000.0,0.00033602,60]
[420674828,1776456048896,-1000.0,0.00033602,60]
[420674829,1776456048950,-1270.9048166,0.00033602,60]
[420674830,1776456049000,-500.0,0.00033602,60]
[420674831,1776456049052,-500.0,0.00033602,60]
[420674832,1776456049101,-2300.0,0.00033602,60]
[420674833,1776456049151,-2300.0,0.00033602,60]
[420674834,1776456049201,-1100.0,0.00033602,60]
[420674835,1776456049250,-2300.0,0.00033602,60]
[420674836,1776456049302,-1100.0,0.00033602,60]
[420674837,1776456049355,-2300.0,0.00033602,60]
[420674838,1776456049406,-1100.0,0.00033602,60]
[420674839,1776456049459,-2300.0,0.00033602,60]
[420674840,1776456049511,-1100.0,0.00033602,60]
[420674841,1776456049563,-2300.0,0.00033602,60]
[420674842,1776456049616,-1100.0,0.00033602,60]
[420674843,1776456049669,-2300.0,0.00033602,60]
[420674844,1776456049723,-1100.0,0.00033602,60]
[420674845,1776456049777,-2300.0,0.00033602,60]
[420674846,1776456049827,-1100.0,0.00033602,60]
[420674847,1776456049878,-2300.0,0.00033602,60]
[420674848,1776456049929,-500.0,0.00033602,60]
[420674849,1776456049980,-1100.0,0.00033602,60]
[420674850,1776456050032,-2300.0,0.00033602,60]
[420674851,1776456050083,-500.0,0.00033602,60]
[420674852,1776456050133,-1100.0,0.00033602,60]
[420674853,1776456050183,-2300.0,0.00033602,60]
[420674854,1776456050234,-500.0,0.00033602,60]
[420674855,1776456050285,-1100.0,0.00033602,60]
[420674856,1776456050338,-2300.0,0.00033602,60]
[420674857,1776456050390,-1100.0,0.00033602,60]
[420674858,1776456050442,-500.0,0.00033602,60]
[420674859,1776456050498,-2300.0,0.00033602,60]
[420674860,1776456050551,-500.0,0.00033602,60]
[420674861,1776456050605,-1100.0,0.00033602,60]
[420674862,1776456050659,-2300.0,0.00033602,60]
[420674863,1776456050709,-500.0,0.00033602,60]
[420674864,1776456050760,-1100.0,0.00033602,60]
[420674865,1776456050810,-2300.0,0.00033602,60]
[420674866,1776456050861,-1100.0,0.00033602,60]
[420674867,1776456050912,-2300.0,0.00033602,60]
[420674868,1776456050962,-500.0,0.00033602,60]
[420674869,1776456051020,-1100.0,0.00033602,60]
[420674870,1776456051239,-2300.0,0.00033602,60]
[420674871,1776456051292,-825.1758614,0.00033602,60]
[420674872,1776456051344,-1100.0,0.00033602,60]
[420674873,1776456051395,-2300.0,0.00033602,60]
[420674874,1776456051445,-1100.0,0.00033602,60]
[420674875,1776456051494,-1100.0,0.00033602,60]
[420674876,1776456051549,-2300.0,0.00033602,60]
[420674877,1776456051599,-1100.0,0.00033602,60]
[420674878,1776456051652,-2300.0,0.00033602,60]
[420674879,1776456051703,-1100.0,0.00033602,60]
[420674880,1776456051755,-2300.0,0.00033602,60]
[420674881,1776456051807,-2300.0,0.00033602,60]
[420674882,1776456051858,-1100.0,0.00033602,60]
[420674883,1776456051909,-500.0,0.00033602,60]
[420674884,1776456051959,-1100.0,0.00033602,60]
[420674885,1776456052010,-2300.0,0.00033602,60]
[420674886,1776456052065,-1100.0,0.00033602,60]
[420674887,1776456052119,-2300.0,0.00033602,60]
[420674888,1776456052175,-1100.0,0.00033602,60]
[420674889,1776456052230,-2300.0,0.00033602,60]
[420674890,1776456052284,-500.0,0.00033602,60]
[420674891,1776456052338,-1100.0,0.00033602,60]
[420674892,1776456052392,-2300.0,0.00033602,60]
[420674893,1776456052449,-500.0,0.00033602,60]
[420674894,1776456052504,-1100.0,0.00033602,60]
[420674895,1776456052562,-500.0,0.00033602,60]
[420674896,1776456052616,-2300.0,0.00033602,60]
[420674897,1776456052672,-500.0,0.00033602,60]
[420674898,1776456052727,-2300.0,0.00033602,60]
[420674899,1776456052781,-1416.5995783,0.00033602,60]
[420674900,1776456052834,-500.0,0.00033602,60]
[420674901,1776456052887,-3200.8783918,0.00033602,60]
[420674902,1776456052940,-500.0,0.00033602,60]
[420674903,1776456052992,-170.0582319,0.00033602,60]
[420674904,1776456053046,-500.0,0.00033602,60]
[420674905,1776456053098,-452.8926623,0.00033602,60]
[420674906,1776456053151,-500.0,0.00033602,60]
[420674907,1776456053205,-500.0,0.00033602,60]
[420674908,1776456053256,-500.0,0.00033602,60]
[420674909,1776456053313,-500.0,0.00033602,60]
[420674910,1776456053364,-500.0,0.00033602,60]
[420674911,1776456053415,-174.8095254,0.00033602,60]
[420674912,1776456053466,-500.0,0.00033602,60]
[420674913,1776456053518,-500.0,0.00033602,60]
[420674914,1776456053570,-500.0,0.00033602,60]
[420674915,1776456053622,-592.0108646,0.00033602,60]
[420674916,1776456053675,-225.1095797,0.00033602,60]
[420674917,1776456053728,-500.0,0.00033602,60]
[420674918,1776456053780,-500.0,0.00033602,60]
[420674919,1776456053833,-250.35,0.00033602,60]
[420674920,1776456053886,-1100.0,0.00033602,60]
[420674921,1776456053939,-1100.0,0.00033602,60]
[420674922,1776456053992,-1100.0,0.00033602,60]
[420674923,1776456054044,-500.0,0.00033602,60]
[420674924,1776456054096,-1100.0,0.00033602,60]
[420674925,1776456054148,-1100.0,0.00033602,60]
[420674926,1776456054203,-500.0,0.00033602,60]
[420674927,1776456054256,-1100.0,0.00033602,60]
[420674928,1776456054311,-588.1591351,0.00033602,60]
[420674929,1776456054366,-1100.0,0.00033602,60]
[420674930,1776456054419,-1100.0,0.00033602,60]
[420674931,1776456054475,-1100.0,0.00033602,60]
[420674932,1776456054531,-1100.0,0.00033602,60]
[420674933,1776456054587,-500.0,0.00033602,60]
[420674934,1776456054642,-1100.0,0.00033602,60]
[420674935,1776456054699,-1100.0,0.00033602,60]
[420674936,1776456054769,-500.0,0.00033602,60]
[420674937,1776456054824,-1100.0,0.00033602,60]
[420674938,1776456054877,-1100.0,0.00033602,60]
[420674939,1776456054928,-1100.0,0.00033602,60]
[420674940,1776456054979,-418.259892,0.00033602,60]
[420674941,1776456055031,-1100.0,0.00033602,60]
[420674942,1776456055084,-1100.0,0.00033602,60]
[420674943,1776456055138,-251.25,0.00033602,60]
[420674944,1776456055190,-500.0,0.00033602,60]
[420674945,1776456055243,-1100.0,0.00033602,60]
[420674946,1776456055299,-1100.0,0.00033602,60]
[420674947,1776456055353,-1100.0,0.00033602,60]
[420674948,1776456055410,-1100.0,0.00033602,60]
[420674949,1776456055465,-1100.0,0.00033602,60]
[420674950,1776456055518,-1100.0,0.00033602,60]
[420674951,1776456055575,-1100.0,0.00033602,60]
[420674952,1776456055628,-1100.0,0.00033602,60]
[420674953,1776456055682,-1100.0,0.00033602,60]
[420674954,1776456055734,-1682.4241385,0.00033602,60]
[420674955,1776456055792,-1665.78,0.00033673,120]
[420674956,1776456055850,-4332.08,0.00033699,120]
[420674957,1776456055903,-1000.0,0.000338,120]
[420674958,1776456055957,-1665.78,0.00033827,120]
[420674959,1776456056011,-1665.78,0.0003398,120]
[420674960,1776456056062,-1000.0,0.00034,120]
[420674961,1776456056111,-1000.0,0.00034,120]
[420674962,1776456056160,-150.0,0.00034,120]
[420674963,1776456056211,-1665.78,0.00034133,120]
[420674964,1776456056261,-500.0,0.00034198,120]
[420674965,1776456056310,-600.0,0.00034212,120]
[420674966,1776456056360,-193.0,0.00034247,120]
[420674967,1776456056413,-600.0,0.00034247,120]
[420674968,1776456056466,-150.0,0.00034247,120]
[420674969,1776456056518,-171.0,0.00034247,120]
[420674970,1776456056569,-1665.78,0.00034286,120]
[420674971,1776456056622,-1665.78,0.00034439,120]
[420674972,1776456056675,-724.97559035,0.000345,120]
[420674973,1776456056727,-1665.78,0.00034592,120]
[420674974,1776456056780,-150.0,0.00034681,120]
[420674975,1776456057194,-1665.78,0.00034745,120]
[420674976,1776456057250,-1000.0,0.000348,120]
[420674977,1776456057302,-500.0,0.00034815,120]
[420674978,1776456057352,-1444.0,0.00034849,120]
[420674979,1776456057404,-790.39321622,0.0003488,120]
[420674980,1776456057452,-1665.78,0.00034898,120]
[420674981,1776456057501,-13882.77906275,0.000349,120]
[420674982,1776456057550,-651.0,0.00034978,120]
[420674983,1776456057599,-728.81,0.00034988,120]
[420674984,1776456057651,-150.0,0.00035,60]
[420674985,1776456057701,-10000.0,0.00035,120]
[420674986,1776456057753,-4850.0,0.00035,120]
[420674987,1776456057802,-10189.0,0.00035,120]
[420674988,1776456057852,-166.0,0.00035,120]
[420674989,1776456057902,-9266.75797153,0.00035,120]
[420674990,1776456057951,-78860.547,0.00035,120]
[420674991,1776456057999,-4062.0,0.00035,120]
[420674992,1776456058049,-200.0,0.00035,120]
[420674993,1776456058101,-1009.0,0.00035,120]
[420674994,1776456058154,-1492.94420148,0.00035,120]
[420674995,1776456058206,-184.74669115,0.00035,120]
[420674996,1776456058257,-4087.77312997,0.00035,120]
[420674997,1776456058308,-1000.0,0.00035,120]
[420674998,1776456058358,-150.19061137,0.00035,90]
[420674999,1776456058407,-526.35,0.00035,60]
[420675000,1776456058457,-300.0,0.00035,120]
[420675001,1776456058505,-4677.0,0.00035,120]
[420675002,1776456058554,-4711.0,0.00035,120]
[420675003,1776456058602,-4712.0,0.00035,120]
[420675004,1776456058656,-1665.78,0.00035051,120]
[420675005,1776456058709,-301.0,0.00035068,90]
[420675006,1776456058764,-150.0,0.00035143,120]
[420675007,1776456058817,-1665.78,0.00035204,120]
[420675008,1776456058872,-1665.78,0.00035357,120]
[420675009,1776456058925,-203.0,0.0003538,120]
[420675010,1776456058979,-150.0,0.00035428,120]
[420675011,1776456059030,-500.0,0.00035433,120]
[420675012,1776456059081,-1665.78,0.0003551,120]
[420675013,1776456059131,-848.94493717,0.000356,120]
[420675014,1776456059180,-1110.866,0.000356,60]
[420675015,1776456059227,-1366.718,0.000356,120]
[420675016,1776456059276,-195.12579424,0.000356,120]
[420675017,1776456059325,-2232.594,0.000356,60]
[420675018,1776456059373,-2232.594,0.000356,120]
[420675019,1776456059421,-2232.59,0.000356,60]
[420675020,1776456059469,-1455.478,0.000356,120]
[420675021,1776456059516,-1455.478,0.000356,120]
[420675022,1776456059564,-1455.47,0.000356,120]
[420675023,1776456059612,-8759.61101486,0.00035616,120]
[420675024,1776456059662,-1000.0,0.00035616,120]
[420675025,1776456059711,-600.0,0.00035616,120]
[420675026,1776456059760,-300.0,0.00035616,120]
[420675027,1776456059811,-462.49428786,0.00035617,120]
[420675028,1776456059860,-325.2256646,0.00035617,120]
[420675029,1776456059908,-1665.78,0.00035663,120]
[420675030,1776456059958,-825.0,0.00035796,90]
[420675031,1776456060007,-1665.78,0.00035816,120]
[420675032,1776456060058,-180.0,0.00035845,120]
[420675033,1776456060108,-4296.70438574,0.000359,120]
[420675034,1776456060160,-1665.78,0.00035969,120]
[420675035,1776456060212,-1001.0,0.00036,120]
[420675036,1776456060264,-10136.74311375,0.00036,120]
[420675037,1776456060315,-500.0,0.00036,120]
[420675038,1776456060367,-150.0,0.00036,120]
[420675039,1776456060416,-335.59311628,0.00036,120]
[420675040,1776456060467,-5723.44739842,0.00036,120]
[420675041,1776456060519,-500.0,0.0003605,120]
[420675042,1776456060573,-2000.0,0.000361,120]
[420675043,1776456060625,-2000.0,0.000361,120]
[420675044,1776456060676,-1665.78,0.00036122,120]
[420675045,1776456060728,-1665.78,0.00036276,120]
[420675046,1776456060781,-1000.0,0.000364,120]
[420675047,1776456060836,-150.0,0.00036422,120]
[420675048,1776456060893,-1665.78,0.00036429,120]
[420675049,1776456060953,-1665.78,0.00036582,120]
[420675050,1776456061005,-500.0,0.00036667,120]
[420675051,1776456061058,-1665.78,0.00036735,120]
[420675052,1776456061108,-1000.0,0.000368,120]
[420675053,1776456061161,-150.0,0.00036838,120]
[420675054,1776456061211,-1665.78,0.00036888,120]
[420675055,1776456061264,-1815.2931064,0.000369,120]
[420675056,1776456061315,-3509.563,0.000369,60]
[420675057,1776456061369,-3509.56,0.000369,120]
[420675058,1776456061425,-2413.737,0.000369,120]
[420675059,1776456061481,-2413.737,0.000369,60]
[420675060,1776456061537,-2413.73,0.000369,120]
[420675061,1776456062022,-1245.356,0.000369,60]
[420675062,1776456062077,-1245.35,0.000369,120]
[420675063,1776456062131,-190.0,0.000369,120]
[420675064,1776456062182,-150.0,0.00036926,120]
[420675065,1776456062235,-600.0,0.00036986,120]
[420675067,1776456062285,-1289.87,0.00036988,120]
[420675068,1776456062336,-1000.0,0.00037,120]
[420675069,1776456062385,-1000.0,0.00037,120]
[420675070,1776456062434,-1000.0,0.00037,120]
[420675071,1776456062484,-1665.78,0.00037041,120]
[420675072,1776456062537,-150.0,0.00037111,120]
[420675073,1776456062589,-300.0,0.00037151,60]
[420675074,1776456062642,-1665.78,0.00037194,120]
[420675075,1776456062695,-10811.12563872,0.00037212,120]
[420675076,1776456062748,-347.34,0.00037215,90]
[420675077,1776456062802,-500.0,0.00037284,120]
[420675078,1776456062854,-1000.0,0.000373,120]
[420675079,1776456062907,-1645.97751,0.000373,120]
[420675080,1776456062962,-1665.78,0.00037347,120]
[420675081,1776456063014,-772.44,0.000374,60]
[420675082,1776456063064,-772.44,0.000374,120]
[420675083,1776456063113,-1599.629,0.000374,120]
[420675084,1776456063163,-1599.63,0.000374,120]
[420675085,1776456063215,-300.0,0.00037425,60]
[420675086,1776456063263,-583.0,0.000375,120]
[420675087,1776456063313,-150.0,0.0003765,120]
[420675088,1776456063362,-300.0,0.00037699,60]
[420675089,1776456063415,-1257.435274,0.0003788,120]
[420675090,1776456063462,-1037.64912,0.000379,120]
[420675091,1776456063513,-500.0,0.00037902,120]
[420675092,1776456063563,-300.0,0.00037973,60]
[420675093,1776456063612,-739.04,0.00037999,120]
[420675094,1776456063662,-500.0,0.00038,120]
[420675095,1776456063713,-44444.0,0.00038,120]
[420675096,1776456063771,-2482.0,0.00038,120]
[420675097,1776456063821,-150.0,0.00038,120]
[420675098,1776456063874,-236.77372,0.00038,120]
[420675099,1776456063926,-40056.17675655,0.00038,120]
[420675100,1776456063975,-1700.0,0.00038,120]
[420675101,1776456064024,-2134.39365968,0.00038,120]
[420675102,1776456064073,-600.0,0.00038014,120]
[420675103,1776456064120,-825.0,0.00038052,90]
[420675104,1776456064168,-150.0,0.0003807,120]
[420675105,1776456064216,-1000.0,0.000382,120]
[420675106,1776456064268,-1714.661,0.000382,120]
[420675107,1776456064317,-1714.66,0.000382,120]
[420675108,1776456064366,-13900.18,0.000382,60]
[420675109,1776456064416,-3202.878,0.000382,60]
[420675110,1776456064469,-3202.88,0.000382,60]
[420675111,1776456064521,-437.2263,0.000382,60]
[420675112,1776456064571,-16576.113,0.000382,60]
[420675113,1776456064622,-18968.0083,0.000382,60]
[420675114,1776456064673,-16387.7277,0.000382,120]
[420675115,1776456064722,-1524.513,0.000382,120]
[420675116,1776456064770,-1524.51,0.000382,120]
[420675117,1776456064821,-2714.639,0.000382,120]
[420675118,1776456064871,-2714.63,0.000382,120]
[420675119,1776456064923,-3251.896,0.000382,60]
[420675120,1776456064974,-3251.89,0.000382,60]
[420675121,1776456065024,-300.0,0.00038301,60]
[420675122,1776456065073,-300.0,0.00038301,60]
[420675123,1776456065121,-150.0,0.0003835,120]
[420675124,1776456065168,-150.0,0.0003835,120]
[420675125,1776456065214,-150.0,0.0003835,120]
[420675126,1776456065263,-150.0,0.0003835,120]
[420675127,1776456065312,-150.0,0.0003835,120]
[420675128,1776456065359,-150.0,0.0003835,120]
[420675129,1776456065407,-150.0,0.0003835,120]
[420675130,1776456065455,-150.0,0.0003835,120]
[420675131,1776456065504,-150.0,0.0003835,120]
[420675132,1776456065553,-150.0,0.0003835,120]
[420675133,1776456065604,-175.13783549,0.0003835,120]
[420675134,1776456065758,-192.83375079,0.00038355,120]
[420675135,1776456065808,-212.06443745,0.00038355,120]
[420675136,1776456065857,-287.18892743,0.00038355,120]
[420675137,1776456065907,-500.0,0.00038356,120]
[420675138,1776456065956,-500.0,0.00038356,120]
[420675139,1776456066006,-150.0,0.00038356,120]
[420675140,1776456066057,-171.0,0.00038356,120]
[420675141,1776456066106,-1000.0,0.00038356,120]
[420675142,1776456066156,-600.0,0.00038356,120]
[420675143,1776456066204,-600.0,0.00038356,60]
[420675144,1776456066254,-770.45601862,0.00038356,120]
[420675145,1776456066302,-770.45601862,0.00038356,120]
[420675146,1776456066351,-300.0,0.00038356,60]
[420675147,1776456066399,-344.01,0.000384,120]
[420675148,1776456066449,-301.02,0.000384,120]
[420675149,1776456066499,-212.06443745,0.00038411,120]
[420675150,1776456066549,-311.26342141,0.00038429,120]
[420675151,1776456066601,-150.0,0.0003844,120]
[420675152,1776456066656,-2000.0,0.00038451,120]
[420675153,1776456066706,-212.06443745,0.00038467,120]
[420675154,1776456066758,-311.26342141,0.00038503,120]
[420675155,1776456066809,-500.0,0.00038519,120]
[420675156,1776456066857,-212.06443745,0.00038523,120]
[420675157,1776456066908,-300.0,0.00038575,60]
[420675158,1776456066959,-311.26342141,0.00038577,120]
[420675159,1776456067011,-212.06443745,0.00038579,120]
[420675160,1776456067065,-2000.0,0.00038586,120]
[420675161,1776456067115,-770.45601862,0.00038611,120]
[420675162,1776456067166,-2400.0,0.0003863,60]
[420675163,1776456067217,-212.06443745,0.00038635,120]
[420675164,1776456067269,-311.26342141,0.00038651,120]
[420675165,1776456067320,-500.0,0.0003867,120]
[420675166,1776456067371,-406.11413994,0.00038678,60]
[420675167,1776456067421,-212.06443745,0.00038691,120]
[420675168,1776456067472,-150.0,0.00038698,120]
[420675169,1776456067525,-500.0,0.000387,120]
[420675170,1776456067579,-500.0,0.000387,120]
[420675171,1776456067633,-500.0,0.000387,120]
[420675172,1776456067688,-500.0,0.000387,120]
[420675173,1776456067743,-500.0,0.000387,120]
[420675174,1776456067795,-500.0,0.000387,120]
[420675175,1776456067848,-500.0,0.000387,120]
[420675176,1776456067903,-500.0,0.000387,120]
[420675177,1776456067956,-500.0,0.000387,120]
[420675178,1776456068007,-500.0,0.000387,120]
[420675179,1776456068057,-500.0,0.000387,120]
[420675180,1776456068107,-500.0,0.000387,120]
[420675181,1776456068154,-500.0,0.000387,120]
[420675182,1776456068201,-500.0,0.000387,120]
[420675183,1776456068249,-500.0,0.000387,120]
[420675184,1776456068295,-500.0,0.000387,120]
[420675185,1776456068343,-500.0,0.000387,120]
[420675186,1776456068390,-500.0,0.000387,120]
[420675187,1776456068437,-500.0,0.000387,120]
[420675188,1776456068487,-500.0,0.000387,120]
[420675189,1776456068535,-2000.0,0.00038722,120]
[420675190,1776456068586,-311.26342141,0.00038726,120]
[420675191,1776456068635,-212.06443745,0.00038747,120]
[420675192,1776456068684,-500.0,0.00038767,120]
[420675193,1776456068734,-300.0,0.00038795,90]
[420675194,1776456068781,-311.26342141,0.000388,120]
[420675195,1776456068829,-1492.318533,0.000388,120]
[420675196,1776456068878,-212.06443745,0.00038803,120]
[420675197,1776456068928,-1612.44,0.00038831,120]
[420675198,1776456068978,-671.22,0.00038831,120]
[420675199,1776456069027,-654.72,0.00038831,120]
[420675200,1776456069075,-770.45601862,0.00038841,120]
[420675201,1776456069127,-2000.0,0.00038858,120]
[420675202,1776456069174,-212.06443745,0.00038858,120]
[420675203,1776456069220,-311.26342141,0.00038874,120]
[420675204,1776456069268,-511877.00015859,0.00038875,60]
[420675205,1776456069313,-498.71,0.00038885,120]
[420675206,1776456069360,-2983.26664043,0.000389,120]
[420675207,1776456069409,-229.9,0.000389,120]
[420675208,1776456069457,-2400.0,0.00038904,90]
[420675209,1776456069504,-212.06443745,0.00038914,120]
[420675210,1776456069553,-311.26342141,0.00038948,120]
[420675211,1776456069602,-770.45601862,0.00038955,120]
[420675212,1776456069651,-212.06443745,0.0003897,120]
[420675213,1776456069703,-2000.0,0.00038993,120]
[420675214,1776456069752,-200.0,0.00039,120]
[420675215,1776456069801,-1545.56,0.00039,120]
[420675216,1776456069850,-397.73643,0.00039,120]
[420675217,1776456069899,-5000.0,0.00039,60]
[420675218,1776456069947,-506.2447931,0.00039,120]
[420675219,1776456069996,-1000.0,0.00039,120]
[420675220,1776456070044,-566.44667,0.00039,120]
[420675221,1776456070092,-3000.0,0.00039,60]
[420675222,1776456070139,-1000.0,0.00039,60]
[420675223,1776456070185,-10905.51868452,0.00039,120]
[420675224,1776456070232,-434.23561934,0.00039,120]
[420675225,1776456070280,-6162.364909,0.00039,120]
[420675226,1776456070328,-53057.0,0.00039,120]
[420675227,1776456070377,-311.26342141,0.00039022,120]
[420675228,1776456070425,-212.06443745,0.00039026,120]
[420675229,1776456070472,-150.0,0.0003904,120]
[420675230,1776456070524,-150.0,0.00039053,120]
[420675231,1776456070576,-300.0,0.00039068,90]
[420675232,1776456070626,-212.06443745,0.00039082,120]
[420675233,1776456070677,-311.26342141,0.00039096,120]
[420675234,1776456070739,-1761.4286,0.000391,120]
[420675235,1776456070793,-2000.0,0.00039129,120]
[420675236,1776456070846,-500.0,0.00039136,120]
[420675237,1776456071106,-212.06443745,0.00039138,120]
[420675238,1776456071157,-770.45601862,0.00039147,120]
[420675239,1776456071213,-311.26342141,0.0003917,120]
[420675240,1776456071264,-500.0,0.00039178,120]
[420675241,1776456071313,-2400.0,0.00039178,120]
[420675242,1776456071361,-212.06443745,0.00039194,120]
[420675243,1776456071411,-300.0,0.00039233,90]
[420675244,1776456071461,-311.26342141,0.00039244,120]
[420675245,1776456071514,-212.06443745,0.0003925,120]
[420675246,1776456071565,-2000.0,0.00039264,120]
[420675247,1776456071615,-220.84872752,0.00039279,120]
[420675248,1776456071668,-203.8583845,0.00039279,120]
[420675249,1776456071719,-212.96480515,0.00039279,120]
[420675250,1776456071768,-216.5699835,0.00039279,120]
[420675251,1776456071819,-203.85838449,0.00039279,120]
[420675252,1776456071869,-203.85838449,0.00039279,120]
[420675253,1776456071920,-212.06443745,0.00039306,120]
[420675254,1776456071971,-311.26342141,0.00039318,120]
[420675255,1776456072022,-300.0,0.00039342,90]
[420675256,1776456072079,-212.06443745,0.00039362,120]
[420675257,1776456072128,-150.0,0.00039383,120]
[420675258,1776456072176,-311.26342141,0.00039392,120]
[420675259,1776456072227,-1022.0,0.00039397,120]
[420675260,1776456072274,-2000.0,0.000394,120]
[420675261,1776456072322,-212.06443745,0.00039418,120]
[420675262,1776456072370,-311.26342141,0.00039466,120]
[420675263,1776456072417,-212.06443745,0.00039474,120]
[420675264,1776456072465,-194.92427349,0.000395,60]
[420675265,1776456072516,-154.15896524,0.000395,60]
[420675266,1776456072566,-1211.755,0.000395,120]
[420675267,1776456072617,-1211.75,0.000395,120]
[420675268,1776456072669,-1634.38,0.000395,60]
[420675269,1776456072720,-150.0,0.000395,120]
[420675270,1776456072770,-1665.637,0.000395,60]
[420675271,1776456072820,-2237.888,0.000395,120]
[420675272,1776456072870,-2237.88,0.000395,120]
[420675273,1776456072925,-2237.88,0.000395,60]
[420675274,1776456072977,-1346.9,0.000395,60]
[420675275,1776456073029,-1373.408,0.000395,60]
[420675276,1776456073082,-1373.4,0.000395,120]
[420675277,1776456073135,-2237.888,0.000395,60]
[420675278,1776456073188,-2237.888,0.000395,120]
[420675279,1776456073241,-2237.88,0.000395,120]
[420675280,1776456073292,-162.84449172,0.000395,120]
[420675281,1776456073346,-1767.985,0.000395,120]
[420675282,1776456073396,-1767.985,0.000395,60]